Cogmind - Beta 15 @@@ ROGUE MODE // 2025.05.09 @ 20:01:22 Player: FloorSandwich Result: Self-destructed Performance ------------- Evolutions (2) 1000 Regions Visited (4) 800 Robots Destroyed (23) 115 Value Destroyed (662) 662 Prototype IDs (1) 20 Alien Tech Used (0) 0 Bonus (0) 0 TOTAL SCORE: 2597 Bonus ------- None Cogmind --------- Core Integrity 380/550 Matter 227/300 Energy 120/275 System Corruption 0% Temperature Cool (0) Movement Walking (200) Ox1 Location -8/Materials Parts ------- > --- POWER (2) -------- Deuterium Engine > --- PROPULSION (4) --- Titanium Leg > --- UTILITY (3) ------ Large Storage Unit Transport Network Coupler > --- WEAPON (2) ------- Datajack > --- INVENTORY (15) --- Sensor Array Targeting Computer Power Shielding Hardlight Generator Peak State ------------ > --- POWER ------------ Light Nuclear Core > --- PROPULSION ------- Improved Aluminum Leg Improved Aluminum Leg Improved Aluminum Leg > --- UTILITY ---------- Large Storage Unit Sensor Array > --- WEAPON ----------- Heavy Assault Rifle Heavy Assault Rifle > --- INVENTORY -------- Ion Engine Improved Aluminum Leg Transport Network Coupler Targeting Computer Power Shielding EM Pulse Gun Heavy Assault Rifle Light Cannon [Rating: 16] Favorites ----------- Power Light Ion Engine Engine Light Ion Engine Power Core Light Nuclear Core Propulsion Aluminum Leg Treads Light Treads Leg Aluminum Leg Utility Large Storage Unit Device Sensor Array Storage Large Storage Unit Processor Transport Network Coupler Protection Power Shielding Weapon Light Cannon Energy Gun Small Laser Ballistic Gun Heavy Assault Rifle Ballistic Cannon Light Cannon Special Melee Weapon Datajack Build | -11 -10 -9 -9 -8 ------- Run | Yrd Mat Mat Min Mat Slots Evolved 4 | . . 2 . 2 Power 1 | . . 1 . . Propulsion 2 | . . 1 . 1 Utility 1 | . . . . 1 Weapon . | . . . . . Parts Attached 32 | 5 8 3 8 8 Power 4 | . . 2 1 1 Engine 3 | . . 1 1 1 Core 1 | . . 1 . . Reactor . | . . . . . Propulsion 11 | 2 2 1 5 1 Treads 2 | 2 . . . . Leg 9 | . 2 1 5 1 Wheel . | . . . . . Hover . | . . . . . Flight . | . . . . . Utility 7 | 1 2 . . 4 Device 2 | . 1 . . 1 Storage 2 | 1 1 . . . Processor 1 | . . . . 1 Hackware . | . . . . . Protection 2 | . . . . 2 Artifact . | . . . . . Weapon 10 | 2 4 . 2 2 Energy Gun 3 | 2 1 . . . Energy Cannon . | . . . . . Ballistic Gun 5 | . 3 . 1 1 Ballistic Cannon 1 | . . . 1 . Launcher . | . . . . . Special Weapon . | . . . . . Impact Weapon . | . . . . . Slashing Weapon . | . . . . . Piercing Weapon . | . . . . . Special Melee Weapon 1 | . . . . 1 Unidentified Prototypes 1 | . . . . 1 Parts Lost 12 | . 1 . 6 5 Power 3 | . . . 2 1 Propulsion 5 | . 1 . 2 2 Utility 1 | . . . . 1 Weapon 3 | . . . 2 1 Highest Loss Streak 3 | . 1 . 3 2 To Critical Strikes . | . . . . . Average Backups 4 | 3 2 7 3 4 Power . | . . . . . Propulsion . | 1 . 1 . . Utility 2 | . 1 3 3 4 Weapon . | 1 1 3 . . Tool/Special . | . . . . . Unused Backups 1 | . . . . 1 Power . | . . . . . Propulsion . | . . . . . Utility 1 | . . . . 1 Weapon . | . . . . . Tool/Special . | . . . . . Average Slot Usage (%) 73 | . 82 86 73 52 Engine 6 | . . 4 10 7 Core 2 | . . 4 3 . Treads 6 | . 26 . . . Leg 16 | . . 33 20 16 Device 10 | . 12 11 11 5 Storage 11 | . 14 11 11 9 Protection 1 | . . . . 8 Energy Gun 6 | . 25 . . . Ballistic Gun 5 | . 1 22 5 . Ballistic Cannon 5 | . . . 10 4 Peak Build Rating 16 | 5 11 16 16 12 Average Rating 8 | . 6 13 8 9 On Entrance 7 | . 5 11 16 6 Naked Turns . | . . . . . Heaviest Build 38 | 8 27 37 37 38 Greatest Support 40 | 40 40 39 39 37 Greatest Overweight (x) 2 | . 1 1 2 2 Average Overweight (x) . | . . . 1 . Largest Inventory Capacity 15 | 8 15 15 15 15 Average Capacity 14 | 5 14 15 15 15 Most Carried 8 | 5 8 8 7 8 Average Carried 4 | 3 2 7 3 4 Final Capacity 15 | 8 15 15 15 15 Final Carried 8 | 1 8 7 3 4 Class Distribution -------------------- 85% | Mutant 14% | Scavenger-Mutant Dominant Class ---------------- Mutant | -10/Materials Mutant | -9/Materials Mutant | -9/Mines Mutant | -8/Materials Resources | -11 -10 -9 -9 -8 ----------- Run | Yrd Mat Mat Min Mat Matter Collected 673 | 189 91 189 204 . Remotely . | . . . . . Salvage Created 684 | . 300 191 193 . Parts 40 | . 17 9 14 . Haulers Intercepted 1 | . 1 . . . Recyclers Shooed 1 | . . 1 . . Parts Field Recycled . | . . . . . Retrieved Matter . | . . . . . Parts Self-Destructed . | . . . . . Prevented . | . . . . . Kills | -11 -10 -9 -9 -8 ------- Run | Yrd Mat Mat Min Mat Combat Hostiles Destroyed 21 | . 8 4 9 . Guns 17 | . 8 4 5 . Cannons 4 | . . . 4 . Classes Destroyed 5 | . 4 . 1 . Worker 1 | . 1 . . . Hauler 1 | . 1 . . . Swarmer 7 | . 3 . 4 . Grunt 12 | . 5 4 3 . Demolisher 2 | . . . 2 . Best Kill Streak 4 | . 3 3 4 . Combat Bots Only 4 | . 3 3 4 . Max Kills in Single Turn 2 | . 1 1 2 . Gunslinging 1 | . . . 1 . Exploded . | . . . . . Melee . | . . . . . Uniques/NPCs Destroyed . | . . . . . Combat | -11 -10 -9 -9 -8 -------- Run | Yrd Mat Mat Min Mat Hostile Shots Fired 266 | . 69 39 52 106 Missed 58 | . 14 8 8 28 Hits 208 | . 55 31 44 78 Projectile 208 | . 55 31 44 78 AOE 19 | . . . 19 . Critical Strikes 4 | . 1 . . 3 Damage Taken 2790 | . 658 387 986 759 Core 637 | . 220 50 197 170 Absorbed by Shields . | . . . . . Redirected to Shielding 7 | . . . . 7 Core Remaining (%) 50 | 100 12 . 38 . Volleys Fired 89 | . 47 16 24 2 Largest 2 | . 2 2 2 1 Hottest 80 | . 80 46 70 30 Shots Fired 171 | . 94 32 43 2 Gun 153 | . 94 32 27 . Cannon 18 | . . . 16 2 Launcher . | . . . . . Special . | . . . . . Kinetic 81 | . 6 32 41 2 Thermal 88 | . 88 . . . Explosive . | . . . . . Electromagnetic 2 | . . . 2 . Robot Hit Streak 12 | . 12 6 8 5 Robot Miss Streak 5 | . 5 5 3 . Penetration Max . | . . . . . Secondary Targets 3 | . 2 . 1 . Max Gunslinging Chain 1 | . 1 . 1 . Shots Hit Robots 106 | . 56 18 28 4 Core Hits 40 | . 19 7 13 1 Critical Kills . | . . . . . Critical Parts Destroyed . | . . . . . Critical Strikes 1 | . . . 1 . Blast 1 | . . . 1 . Melee Attacks 2 | . . . . 2 Impact . | . . . . . Slashing . | . . . . . Piercing . | . . . . . Sneak Attacks . | . . . . . Combat Hostiles . | . . . . . Follow-up Attacks . | . . . . . Damage Inflicted 1497 | . 678 343 452 24 Guns 1280 | . 678 339 263 . Cannons 213 | . . . 189 24 Explosions . | . . . . . Melee . | . . . . . Ramming 4 | . . 4 . . Kinetic 876 | . 72 339 441 24 Thermal 606 | . 606 . . . Explosive . | . . . . . Electromagnetic 11 | . . . 11 . Impact . | . . . . . Slashing . | . . . . . Piercing . | . . . . . Highest Corruption . | . . . . . Average Corruption . | . . . . . Corruption Purged . | . . . . . Corruption Blocked . | . . . . . Overload Shots . | . . . . . Overflow Damage . | . . . . . Projectiles . | . . . . . Explosions . | . . . . . Melee . | . . . . . Knockbacks 2 | . . . 1 1 Impact . | . . . . . Kinetic 2 | . . . 1 1 Secondary . | . . . . . Self-Inflicted Damage . | . . . . . Shots . | . . . . . Rammed . | . . . . . Targets Rammed 2 | . . 1 1 . Kicked 2 | . . 1 1 . Crushed . | . . . . . Highest Temperature 203 | . 120 . 110 203 Average Temperature 34 | . 32 . 29 105 Received Heat Transfer 663 | . 327 204 132 . Siege Activations . | . . . . . Martial Activations . | . . . . . Shielding Activations . | . . . . . Robots Disrupted . | . . . . . Combat Hostiles . | . . . . . Robots Corrupted . | . . . . . Combat Hostiles . | . . . . . Parts Fried . | . . . . . Impact Corruptions . | . . . . . Robots Melted . | . . . . . Combat Hostiles . | . . . . . Parts Melted 3 | . 3 . . . Heat Transferred 1350 | . 1350 . . . Parts Sabotaged . | . . . . . Parts Stolen . | . . . . . Parts Stripped . | . . . . . Power Chain Reactions . | . . . . . Alert | -11 -10 -9 -9 -8 ------- Run | Yrd Mat Mat Min Mat Maximum Alert Level . | . . . . . Low Security (%) 100 | 100 100 100 100 100 Level 1 . | . . . . . Level 2 . | . . . . . Level 3 . | . . . . . Level 4 . | . . . . . Level 5 . | . . . . . High Security . | . . . . . Max Security . | . . . . . Peak Influence 90 | . 78 81 90 6 Initial 25 | . . 25 . . Average 11 | . 12 24 11 . Influence Increases 549 | . 202 101 240 6 Destroy 0b10 Robot/C 420 | . 160 80 180 . Destroy 0b10 Robot/NC 10 | . 10 . . . Destroy Leader 82 | . 32 20 30 . Successful Hack 6 | . . . . 6 Disable Machine 15 | . . . 15 . Destroy Structure 1 | . . 1 . . Lose Combat Pursuer 15 | . . . 15 . Influence Decreases 549 | . 142 161 240 6 Entered New Map 35 | . . 35 . . Time Decay 474 | . 132 126 210 6 Lost Part 40 | . 10 . 30 . Squads Dispatched 1 | . 1 . . . Investigation . | . . . . . Extermination . | . . . . . Reinforcement 1 | . 1 . . . Assault . | . . . . . Garrison . | . . . . . Intercept . | . . . . . Searches Triggered . | . . . . . Construction Impeded . | . . . . . Haulers Reinforced . | . . . . . Active Scanning Responses . | . . . . . Cargo Convoy Interrupts . | . . . . . Stealth | -11 -10 -9 -9 -8 --------- Run | Yrd Mat Mat Min Mat Distress Signals 3 | . . 2 1 . Communications Jammed . | . . . . . Distress Signals . | . . . . . Times Spotted 35 | . 14 9 10 2 Peak Tracking Total 7 | . 4 7 4 2 Tactical Retreats 1 | . . . 1 . Traps | -11 -10 -9 -9 -8 ------- Run | Yrd Mat Mat Min Mat Traps Triggered . | . . . . . Indirectly . | . . . . . Trap Hack Attempts . | . . . . . Triggered . | . . . . . Disarmed . | . . . . . Reprogrammed . | . . . . . Reused . | . . . . . Traps Extracted . | . . . . . Installed . | . . . . . Triggered . | . . . . . Machines | -11 -10 -9 -9 -8 ---------- Run | Yrd Mat Mat Min Mat Machines Disabled 1 | . . . 1 . Max in Single Turn 1 | . . . 1 . Machines Repaired . | . . . . . Machines Dismantled . | . . . . . Machines Sabotaged . | . . . . . Overloaded Fab Kills . | . . . . . Hacking | -11 -10 -9 -9 -8 --------- Run | Yrd Mat Mat Min Mat Machines Accessed 3 | . 1 1 . 1 Terminals 3 | . 1 1 . 1 Fabricators . | . . . . . Repair Stations . | . . . . . Recycling Units . | . . . . . Scanalyzers . | . . . . . Garrison Access . | . . . . . Total Hacks 12 | . 2 3 . 7 Successful 8 | . . 2 . 6 Failed 3 | . 2 1 . . Catastrophic . | . . . . . Database Lockouts 1 | . . . . 1 Manual . | . . . . . Terminals 12 | . 2 3 . 7 Fabricators . | . . . . . Repair Stations . | . . . . . Recycling Units . | . . . . . Scanalyzers . | . . . . . Garrison Access . | . . . . . Terminal Hacks 8 | . . 2 . 6 Record 6 | . . 1 . 5 Alert Level 1 | . . . . 1 Maintenance Status 1 | . . 1 . . Fabricator Hacks . | . . . . . Repair Station Hacks . | . . . . . Recycling Unit Hacks . | . . . . . Scanalyzer . | . . . . . Garrison Access Hacks . | . . . . . Unauthorized Hacks . | . . . . . Terminals . | . . . . . Fabricators . | . . . . . Repair Stations . | . . . . . Recycling Units . | . . . . . Scanalyzers . | . . . . . Garrison Access . | . . . . . Data Cores Recovered . | . . . . . Used . | . . . . . Hacking Detections 3 | . 1 1 . 1 Full Trace Events . | . . . . . Feedback Events . | . . . . . Feedback Blocked . | . . . . . Robot Schematics Acquired . | . . . . . Robots Built . | . . . . . Authchips . | . . . . . Time . | . . . . . Total Robot Build Rating . | . . . . . Part Schematics Acquired . | . . . . . Parts Built . | . . . . . Authchips . | . . . . . Time . | . . . . . Total Part Build Rating . | . . . . . Parts Repaired . | . . . . . Time . | . . . . . Parts Recycled . | . . . . . Recycled Matter . | . . . . . Retrieved Matter . | . . . . . Retrieved Components . | . . . . . Parts Scanalyzed . | . . . . . Part Schematics Acquired . | . . . . . Parts Damaged . | . . . . . Bothacking | -11 -10 -9 -9 -8 ------------ Run | Yrd Mat Mat Min Mat Used RIF Installer . | . . . . . Robots Hacked 1 | . . . . 1 Non-combat . | . . . . . Combat 1 | . . . . 1 Robot Hacks Applied 1 | . . . . 1 parse_system 1 | . . . . 1 Relay Couplers Released . | . . . . . Fabnet Peak Effective % . | . . . . . Robots Rewired . | . . . . . Allies Hacked . | . . . . . Hacks Repelled . | . . . . . Allies | -11 -10 -9 -9 -8 -------- Run | Yrd Mat Mat Min Mat Total Allies 1 | . . . 1 . Largest Group 1 | . . . 1 1 Highest-Rated Group 16 | . . . 16 16 Highest-Rated Ally 16 | . . . 16 16 Total Orders . | . . . . . Ally Attacks 2 | . . . . 2 Total Damage 35 | . . . . 35 Kills . | . . . . . Allies Corrupted . | . . . . . Allies Melted . | . . . . . Intel | -11 -10 -9 -9 -8 ------- Run | Yrd Mat Mat Min Mat Active Infowar (turns) 3163 | . 786 399 1619 359 Sensors 3158 | . 786 399 1619 354 T.N.C. 5 | . . . . 5 Robot Analysis Total . | . . . . . Derelict Logs Recovered 2 | . . . 2 . Drone Launches . | . . . . . Drone Recoveries . | . . . . . Exploration | -11 -10 -9 -9 -8 ------------- Run | Yrd Mat Mat Min Mat Turns Passed 3453 | 35 846 399 1619 554 Spaces Moved 1738 | 48 419 252 707 312 Core 47 | 47 . . . . Treads 410 | 1 409 . . . Legs 1281 | . 10 252 707 312 Wheels . | . . . . . Hover . | . . . . . Flight . | . . . . . Fastest Speed 50 | 50 160 120 120 123 Average Speed 179 | 52 162 136 216 169 Slowest Speed 270 | 160 240 190 260 270 Overloaded Moves . | . . . . . Propulsion Burnouts . | . . . . . Robots Hopped . | . . . . . Potential Cave-ins . | . . . . . Cave-ins Triggered . | . . . . . Exploration Rate (%) 28 | 3 33 23 75 9 Regions Visited 4 Branch Regions 1 Pre-discovered Areas 1 | . . . 1 . Known Exits Taken . | . . . . . Unknown Exits Taken 4 | 1 1 1 1 . Scrap Searched 2 | . . . 2 . Spaces Dug . | . . . . . Terrain Destroyed . | . . . . . Melee . | . . . . . Projectile . | . . . . . AOE . | . . . . . Terrain Rammed . | . . . . . Walls Destroyed . | . . . . . Machines Disabled . | . . . . . Actions | -11 -10 -9 -9 -8 --------- Run | Yrd Mat Mat Min Mat Total 1910 | 57 493 273 753 334 Wait . | . . . . . Move 1734 | 47 418 251 706 312 Hop . | . . . . . Pick Up 32 | 5 14 2 5 6 Fast Attach 1 | 1 . . . . Attach 32 | 4 8 3 9 8 Detach 5 | . 1 . 1 3 Swap 1 | . . . 1 . Drop 12 | . 5 . 6 1 Fire 89 | . 47 16 24 2 Melee 2 | . . . . 2 Ram . | . . . . . Kick 2 | . . 1 1 . Crush . | . . . . . Escape Stasis . | . . . . . Rewire . | . . . . . Trap . | . . . . . Miscellaneous . | . . . . . Route ------- -11/Scrapyard -10/Materials -9/Materials -9/Mines -8/Materials (discovered 1 exit: Fac) History --------- Turn | Location | Event 21 | -11/Scrapyard | Discovered new exit (range 13) 36 | -11/Scrapyard | Entered Materials 307 | -10/Materials | Build established: Mutant 744 | -10/Materials | Discovered new exit (range 14) 807 | -10/Materials | Core integrity fell below 50% 828 | -10/Materials | Core integrity fell below 20% 882 | -10/Materials | Entered another Materials area 882 | -9/Materials | Evolved 2 slots: Power x1, Propulsion x1 1263 | -9/Materials | Discovered new exit (range 11) 1281 | -9/Materials | Entered Mines 1282 | -9/Mines | Assembled infested the area 1646 | -9/Mines | Build established: Scavenger-Mutant 1880 | -9/Mines | Learned location of 1 exit from Materials 1886 | -9/Mines | Lost 3 parts (1p1n1w) 2088 | -9/Mines | Core integrity fell below 50% 2126 | -9/Mines | Lost 3 parts (1p1n1w) 2164 | -9/Mines | Build established: Mutant 2746 | -9/Mines | Learned location of Storage (-9) 2811 | -9/Mines | Assisted by bots powering up and referring to "LRC-V3" 2844 | -9/Mines | Discovered new exit (range 4) 2900 | -9/Mines | Entered Materials 2900 | -8/Materials | Accompanied by 1 ally 2900 | -8/Materials | Evolved 2 slots: Propulsion x1, Utility x1 2901 | -8/Materials | Identified exit to Factory 3066 | -8/Materials | Central database locked down 3454 | -8/Materials | Self-destructed Last Messages --------------- Penetrated by Slug. Critical hit (Destroy). Slug penetrates Wall. Penetrated by Slug. Lgt. Ion Engine destroyed. Penetrated by Slug. Slug penetrates Wall. Acquired Datajack. Slug penetrates Wall. Slug penetrates H-55 Commando. Penetrated by Slug. Hvy. Armor Plating destroyed. Slug penetrates Wall. Jacked H-55 Commando... >>parse_system Reading system data... Slug penetrates Wall. Jacked H-55 Commando... Command string: kill No effect. Map ----- +----------------------------------------------------+ | ?????????????????????????????????????????????????? | | ?????????????????????????????????????????????????? | | ?????????????????????????????????????????????????? | | ?????????????????????????????????????????????????? | | ?????????????????????????????????????????????????? | | ?????????????????????????????????????????????????? | | ?????????????????????????????????????????????????? | | ????????????????????????????????#######+###??????? | | ????????????????????????????????# #??????? | | ????????????????????????????????# #??????? | | ????????????????????????????????? % ???????? | | ??????????????????????????????????? ??######## | | ????????????????????????????????????#+##### # | | ????????????????????????????????????# + """ # | | ????????????????????????????????????# ##### """ # | | ????????????????????????????????????# #???# """ # | | ????????????????????????????????????# #???# # | | ????????????????????????????????????# #???# !# | | ?????????????????????????????????#### ########+### | | ?????????????????????????????????# | | ??????????????????????######?????# ########+## ### | | ??????????????????????# #?????# #?# ## #?? | | ??????????????????????# #?????# #?#"" ## #?# | | ??????????????????????# #####?# #?#"Y ## #?# | | ??????????????????????# # %#?# #?#"" ## #?# | | ??????????????????????# @ h #?# #?# ## #?# | | ??????????????????????# #h #?# #?# ## #?# | | ??????????????????????# ## ##?# ######+#### ### | | ??????????????????????# ## #??# # # | | ??????????????????????# ## ##?# # + | | ??????????????????????###### ### # # | | ???????????????????????##! T # ##+### | | ???????????????????????#! ##### # ## | | ???????????????????????#! ##+##???###### # T ## | | ???????????????????????#! # ?????????# + ## | | ???????????????????????#! # ?????????# # ## | | ???????????????????????##! #""" ????????##### #? | | ????????????????????????####""" ????????????# #? | | ???????????????????????????#""" ???????????# #? | | ???????????????????????????# !???????????#####? | | ????????????????????????????######???????????????? | | ?????????????????????????????????????????????????? | | | | | | | | | | | | | | | | | +----------------------------------------------------+ Best States ------------- Heat Dissipation 31 Energy Generation 19 Energy Capacity 310 Matter Stores 300 Matter Capacity 300 Sight Range 16 Robot Scan Range 14 Terrain Scan Density 10 Armor Coverage 600 Power Shielding 33 Evasion (%) 55 Recoil Reduction 2 Item Schematics ----------------- None Robot Schematics ------------------ None Fabricated ------------ Nothing Repaired ---------- Nothing Alien Tech Used ----------------- None Achievements -------------- None Challenges ------------ None Game ------ Seed NodeBehemothInverter Manual? 0 Play Time 00:20:16 Cumulative 4.5 hours Start 2025.05.09 @ 19:41:51 End 2025.05.09 @ 20:01:22 Sessions 1 Manual Loads 0 Difficulty Rogue Special Mode None Game No. 21 Rogue 21 Adventurer 0 Explorer 0 Win Type - Total 0 Types 0/0/0/0/0/0/0/0/0/0 Lore% 1 Gallery% 10 Achievement% 9 Wizard Run 0 Options --------- Layout 0 ASCII 0 Keyboard 0 Movement Arrows Keybinds 0 Fullscreen 1 Font 24/Smallcaps Map View 56x25 Zoom Use 100% Tactical HUD 0 Map Filters NONE Filters NONE Steam 1 RUN: 20cc3bfd-a1b7-485c-af6a-2c53f268ba4a